bitfinex/quotes_SOLUSD_20251116
["timestamp","ask_amount","ask_price","bid_price","bid_amount"]
[1763262187610,3.40406238,140.87,140.82,2.72406238]
[1763262187810,2.72406238,140.86,140.82,2.72406238]
[1763262188108,3.40406238,140.86,140.82,2.72406238]
[1763262188329,2.72406238,140.84,140.8,2.72406238]
[1763262188535,2.72406238,140.83,140.79,2.72406238]
[1763262188722,2.72406238,140.83,140.8,22.6512]
[1763262188921,0.68,140.82,140.8,22.6512]
[1763262189129,0.68,140.82,140.79,2.72406238]
[1763262189542,0.68,140.82,140.8,22.6512]
[1763262190335,0.68,140.82,140.79,25.37526238]
[1763262190644,0.68,140.82,140.8,22.6512]
[1763262193228,0.69,140.87,140.81,26.05526238]
[1763262193539,0.16451762,140.92,140.85,25.37526238]
[1763262193842,0.85451762,140.92,140.87,2.72406238]
[1763262194021,3.57858,140.92,140.87,2.72406238]
[1763262194218,0.69,140.91,140.87,2.72406238]
[1763262194647,3.41406238,140.91,140.87,2.72406238]
[1763262194825,0.69,140.91,140.87,6.75068058]
[1763262195024,0.69,140.9,140.87,6.75068058]
[1763262195842,0.69,140.9,140.85,22.6512]
[1763262196027,0.69,140.9,140.86,29.40188058]
[1763262196926,0.69,140.9,140.88,22.6512]
[1763262197327,4.9313332,140.9,140.88,22.6512]
[1763262197528,4.9313332,140.9,140.85,27.5725332]
[1763262197717,0.69,140.89,140.86,4.2413332]
[1763262198122,0.69,140.89,140.86,26.8925332]
[1763262198743,4.9313332,140.89,140.84,22.6512]
[1763262198948,4.2413332,140.88,140.83,4.2413332]
[1763262199152,4.9313332,140.88,140.81,0.68]
[1763262199356,0.69,140.87,140.83,26.8925332]
[1763262200149,0.69,140.87,140.86,22.6512]
[1763262200531,0.69,140.87,140.84,4.2413332]
[1763262200726,0.69,140.87,140.84,26.8925332]
[1763262200927,4.9313332,140.87,140.82,4.2413332]
[1763262201129,4.2413332,140.86,140.81,4.2413332]
[1763262201358,4.9313332,140.86,140.82,4.2413332]
[1763262201541,0.69,140.85,140.84,22.6512]
[1763262201742,0.69,140.85,140.83,4.2413332]
[1763262202035,0.69,140.87,140.83,4.2413332]
[1763262202240,0.69,140.86,140.83,4.2413332]
[1763262202750,4.2413332,140.88,140.84,4.2413332]
[1763262202952,0.69,140.87,140.84,4.2413332]
[1763262203836,4.2413332,140.89,140.84,4.2413332]
[1763262204040,0.69,140.89,140.85,4.2413332]
[1763262204243,0.69,140.88,140.85,4.2413332]
[1763262204829,4.2413332,140.9,140.85,4.9213332]
[1763262205042,0.69,140.89,140.85,4.9213332]
[1763262205238,4.9313332,140.89,140.85,4.2413332]
[1763262205762,0.69,140.88,140.85,4.2413332]
[1763262205957,0.16451762,140.92,140.85,4.2413332]
[1763262206156,0.16451762,140.92,140.84,29.75144416]
[1763262206157,4.2413332,140.91,140.87,4.2413332]
[1763262206474,0.69,140.9,140.86,4.2413332]
[1763262207143,4.2413332,140.88,140.84,22.6512]
[1763262207355,4.2413332,140.88,140.83,26.8925332]
[1763262207653,0.69,140.87,140.84,22.6512]
[1763262208051,0.69,140.87,140.84,26.8925332]
[1763262208357,4.9313332,140.87,140.83,22.6512]
[1763262208560,4.2413332,140.86,140.83,22.6512]
[1763262208857,4.2413332,140.85,140.8,4.9213332]
[1763262209031,4.9313332,140.85,140.8,27.5725332]
[1763262209230,0.69,140.84,140.8,26.8925332]
[1763262209464,0.69,140.84,140.81,22.6512]
[1763262209652,0.69,140.84,140.82,22.6512]
[1763262210143,4.9313332,140.84,140.8,4.2413332]
[1763262210340,0.69,140.84,140.82,22.6512]
[1763262211654,0.69,140.84,140.81,4.2413332]
[1763262216891,0.69,140.84,140.81,1.74641915]
[1763262218081,0.640309,140.84,140.81,1.74641915]
[1763262219200,1.74641915,140.83,140.79,22.6512]
[1763262219358,1.74641915,140.82,140.79,22.6512]
[1763262219770,1.74641915,140.83,140.79,22.6512]
[1763262220265,0.69,140.82,140.79,22.6512]
[1763262222265,2.43641915,140.82,140.79,22.6512]
[1763262222776,0.69,140.82,140.79,22.6512]
[1763262222988,0.69,140.82,140.81,22.6512]
[1763262224668,0.69,140.82,140.78,2.42641915]
[1763262224979,1.74641915,140.81,140.79,22.6512]
[1763262225278,2.43641915,140.82,140.8,22.6512]
[1763262225476,0.66,140.81,140.8,22.6512]
[1763262226276,1.74641915,140.82,140.8,22.6512]
[1763262226479,0.66,140.81,140.8,22.6512]
[1763262227880,0.66,140.81,140.77,9.55019606]
[1763262228060,0.66,140.81,140.8,22.6512]
[1763262229258,2.40641915,140.84,140.8,0.7]
[1763262229558,2.40641915,140.84,140.8,2.44641915]
[1763262229767,1.74641915,140.85,140.8,23.3512]
[1763262230084,1.74641915,140.81,140.8,22.6512]
[1763262230465,2.40641915,140.81,140.8,22.6512]
[1763262230664,0.66,140.81,140.8,22.6512]
[1763262231173,2.40641915,140.81,140.8,22.6512]
[1763262232184,2.40641915,140.81,140.78,22.6512]
[1763262234188,1.74641915,140.81,140.78,22.6512]
[1763262234488,2.40641915,140.82,140.78,23.3512]
[1763262234684,0.66,140.82,140.8,22.6512]
[1763262235284,0.66,140.82,140.78,25.09761915]
[1763262235519,0.66,140.82,140.78,22.6512]
[1763262235667,1.74641915,140.81,140.78,22.6512]
[1763262235990,2.40641915,140.82,140.78,22.6512]
[1763262236190,0.66,140.81,140.78,22.6512]
[1763262238166,0.66,140.81,140.78,24.39761915]
[1763262238688,0.66,140.81,140.78,22.6512]
[1763262238896,0.66,140.81,140.78,24.39761915]
[1763262240477,0.66,140.81,140.78,22.6512]
[1763262240669,0.66,140.81,140.78,24.39761915]
[1763262241314,2.40641915,140.83,140.8,22.6512]
[1763262241474,0.66,140.82,140.8,22.6512]
[1763262241883,0.66,140.82,140.78,24.39761915]
[1763262242098,0.66,140.82,140.78,25.09761915]
[1763262242682,2.40641915,140.82,140.78,23.3512]
[1763262242881,1.74641915,140.81,140.78,22.6512]
[1763262243203,2.40641915,140.81,140.78,22.6512]
[1763262243371,2.40641915,140.8,140.77,22.6512]
[1763262243886,0.66,140.79,140.77,22.6512]
[1763262244797,0.66,140.79,140.77,24.39761915]
[1763262245405,0.66,140.79,140.78,22.6512]
[1763262246399,0.66,140.79,140.77,22.6512]
[1763262247586,0.66,140.79,140.76,24.39761915]
[1763262247786,0.66,140.79,140.78,22.6512]
[1763262250305,0.66,140.84,140.79,22.6512]
[1763262250488,0.66,140.83,140.8,1.74641915]
[1763262250805,1.74641915,140.81,140.79,22.6512]
[1763262251179,0.66,140.8,140.79,22.6512]
[1763262251480,2.40641915,140.84,140.79,25.09761915]
[1763262251686,1.74641915,140.84,140.79,25.09761915]
[1763262252006,0.66,140.83,140.79,23.3512]
[1763262252392,0.66,140.83,140.8,1.74641915]
[1763262252607,0.66,140.85,140.81,2.44641915]
[1763262252801,0.66,140.85,140.82,1.74641915]
[1763262253211,0.72,140.86,140.82,2.42641915]
[1763262253393,0.72,140.85,140.82,1.74641915]
[1763262256686,0.72,140.85,140.82,25.11761915]
[1763262256884,0.16451762,140.92,140.84,22.6512]
[1763262257092,0.71,140.87,140.83,1.74641915]
[1763262257289,0.71,140.87,140.85,22.6512]
[1763262258214,2.45641915,140.87,140.85,22.6512]
[1763262258613,2.45641915,140.86,140.81,24.39761915]
[1763262258823,0.71,140.85,140.81,24.39761915]
[1763262258993,0.71,140.85,140.82,22.6512]
[1763262259314,3.43856269,140.85,140.82,22.6512]
[1763262259518,2.72856269,140.83,140.77,2.72856269]
[1763262259692,2.72856269,140.82,140.77,2.72856269]
[1763262259889,0.71,140.84,140.79,22.6512]
[1763262260086,0.71,140.84,140.77,3.44856269]
[1763262260087,0.71,140.83,140.8,2.72856269]
[1763262260311,2.72856269,140.86,140.81,2.72856269]
[1763262260491,0.71,140.85,140.81,2.72856269]
[1763262260918,3.43856269,140.85,140.81,25.37976269]
[1763262261313,0.71,140.84,140.81,25.37976269]
[1763262261618,3.43856269,140.84,140.79,25.37976269]
[1763262261988,2.72856269,140.82,140.78,25.37976269]
[1763262262198,2.72856269,140.81,140.77,2.72856269]
[1763262262504,2.72856269,140.81,140.77,25.37976269]
[1763262262707,2.72856269,140.79,140.78,22.6512]
[1763262263012,2.72856269,140.79,140.75,2.72856269]
[1763262263207,0.71,140.78,140.75,2.72856269]
[1763262263524,0.71,140.78,140.75,25.37976269]
[1763262263719,0.71,140.78,140.73,0.72]
[1763262263907,0.71,140.78,140.74,2.72856269]
[1763262264303,0.71,140.78,140.74,22.6512]
[1763262264304,3.43856269,140.78,140.74,22.6512]
[1763262264704,0.71,140.77,140.74,22.6512]
[1763262265820,0.71,140.77,140.74,25.37976269]
[1763262266017,2.72856269,140.78,140.74,25.37976269]
[1763262266018,0.71,140.78,140.75,2.72856269]
[1763262266920,0.71,140.78,140.74,26.09976269]
[1763262267122,0.71,140.78,140.74,25.37976269]
[1763262267336,0.71,140.78,140.74,26.09976269]
[1763262267714,0.71,140.78,140.75,2.72856269]
[1763262268725,0.71,140.78,140.76,22.6512]
[1763262269030,0.71,140.79,140.76,22.6512]
[1763262269608,0.71,140.79,140.76,25.37976269]
[1763262276440,2.72856269,140.8,140.77,0.72]
[1763262276633,0.71,140.81,140.77,0.72]
[1763262276842,2.72856269,140.8,140.76,26.09976269]
[1763262277022,2.72856269,140.8,140.77,0.72]
[1763262277224,0.71,140.79,140.76,26.09976269]
[1763262277517,0.71,140.79,140.76,25.37976269]
[1763262277743,3.43856269,140.79,140.76,22.6512]
[1763262278117,0.71,140.78,140.76,22.6512]
[1763262285638,2.72856269,140.77,140.72,61.9]
[1763262285941,2.72856269,140.77,140.72,2.82856269]
[1763262285942,9.78882769,140.77,140.72,2.82856269]
[1763262286242,0.68,140.76,140.73,25.37976269]
[1763262286412,0.68,140.76,140.73,22.6512]
[1763262286941,2.72856269,140.78,140.75,22.6512]
[1763262287242,0.68,140.78,140.74,3.41856269]
[1763262287414,0.68,140.77,140.74,3.41856269]
[1763262287610,0.68,140.77,140.74,2.72856269]
[1763262288414,3.40856269,140.79,140.75,3.41856269]
[1763262288641,0.68,140.79,140.76,2.72856269]
[1763262288945,0.68,140.79,140.76,3.41856269]
[1763262289119,0.68,140.79,140.76,2.72856269]
[1763262291520,0.68,140.79,140.75,0.69]
[1763262291817,3.40856269,140.79,140.75,3.41856269]
[1763262292219,0.68,140.78,140.74,25.37976269]
[1763262292421,0.68,140.78,140.74,26.06976269]
[1763262292716,0.68,140.83,140.78,22.6512]
[1763262292946,2.72856269,140.85,140.8,2.72856269]
[1763262293254,19.57765538,140.87,140.81,2.72856269]
[1763262293421,3.40856269,140.86,140.81,3.41856269]
[1763262293615,3.40856269,140.86,140.81,0.69]
[1763262293863,0.68,140.85,140.79,29.75363668]
[1763262294048,0.68,140.85,140.81,2.72856269]
[1763262295135,3.40856269,140.85,140.81,2.72856269]
[1763262295653,0.68,140.84,140.81,2.72856269]
[1763262296059,0.68,140.84,140.82,22.6512]
[1763262296558,0.68,140.84,140.81,2.72856269]
[1763262296752,0.68,140.84,140.81,3.41856269]
[1763262297428,21.34243944,140.89,140.81,3.41856269]
[1763262297630,2.72856269,140.87,140.82,2.72856269]
[1763262298363,0.68,140.86,140.82,2.72856269]
[1763262299661,3.40856269,140.86,140.82,22.6512]
[1763262300255,0.68,140.85,140.82,22.6512]
[1763262300654,2.72856269,140.84,140.8,25.37976269]
[1763262300858,2.72856269,140.81,140.76,2.72856269]
[1763262301056,2.72856269,140.79,140.75,2.72856269]
[1763262301238,2.72856269,140.79,140.75,25.37976269]
[1763262301436,0.68,140.78,140.75,25.37976269]
[1763262301854,0.68,140.78,140.76,2.72856269]
[1763262304152,0.68,140.78,140.75,25.37976269]
[1763262304360,0.68,140.78,140.76,2.72856269]
[1763262305639,0.68,140.78,140.77,22.6512]
[1763262309356,0.68,140.78,140.76,25.37976269]
[1763262309958,0.68,140.78,140.77,22.6512]
[1763262310166,0.68,140.79,140.77,22.6512]
[1763262311737,21.35307306,140.83,140.77,22.6512]
[1763262312060,0.68,140.82,140.8,2.72856269]
[1763262312851,0.68,140.82,140.79,2.72856269]
[1763262316152,0.68,140.82,140.8,2.72856269]
[1763262317184,0.68,140.82,140.78,22.6512]
[1763262317469,0.68,140.82,140.78,2.72856269]
[1763262318249,0.68,140.82,140.77,2.72856269]
[1763262318650,0.68,140.82,140.78,2.72856269]
[1763262319974,0.68,140.82,140.79,2.72856269]
[1763262320377,0.67,140.84,140.81,2.72856269]
[1763262320561,0.67,140.84,140.8,2.72856269]
[1763262320888,0.67,140.84,140.8,1.74666599]
[1763262321181,0.67,140.84,140.81,1.74666599]
[1763262321404,0.67,140.84,140.82,1.74666599]
[1763262323158,0.67,140.84,140.81,1.74666599]
[1763262323354,0.67,140.84,140.79,0.67]
[1763262323587,0.67,140.84,140.81,1.74666599]
[1763262328097,0.67,140.84,140.79,22.6512]
[1763262328391,0.67,140.84,140.76,6.98666396]
[1763262328392,9.78882769,140.83,140.78,1.74666599]
[1763262328603,23.87958811,140.83,140.8,1.74666599]
[1763262328804,0.67,140.83,140.8,1.74666599]
[1763262328972,0.67,140.82,140.8,1.74666599]
[1763262331093,0.67,140.82,140.79,1.74666599]
[1763262331418,0.67,140.82,140.78,1.74666599]
[1763262331583,0.67,140.82,140.79,1.74666599]
[1763262333595,0.67,140.82,140.76,7.65666396]
[1763262333797,0.67,140.82,140.79,1.74666599]
[1763262335594,0.67,140.82,140.78,1.74666599]
[1763262335595,9.78882769,140.81,140.78,1.74666599]
[1763262336099,0.67,140.84,140.8,1.74666599]
[1763262336287,0.67,140.84,140.79,23.3212]
[1763262336486,9.78882769,140.83,140.79,22.6512]
[1763262336793,9.78882769,140.83,140.79,1.74666599]
[1763262337001,0.67,140.82,140.79,1.74666599]
[1763262337495,0.67,140.82,140.8,1.74666599]
[1763262337671,0.67,140.84,140.81,1.74666599]
[1763262337876,0.67,140.84,140.82,1.74666599]
[1763262338483,0.67,140.84,140.79,0.67]
[1763262338684,0.67,140.84,140.82,1.74666599]
[1763262338990,0.67,140.84,140.81,1.74666599]
[1763262341180,9.78882769,140.83,140.8,1.74666599]
[1763262341682,0.67,140.82,140.8,1.74666599]
[1763262342192,0.67,140.83,140.8,1.74666599]
[1763262342503,0.67,140.83,140.79,2.41666599]
[1763262342802,10.45882769,140.83,140.79,2.41666599]
[1763262342980,10.45882769,140.82,140.79,22.6512]
[1763262343313,12.20549368,140.82,140.79,22.6512]
[1763262343479,2.46666599,140.81,140.76,2.42666599]
[1763262343977,0.72,140.8,140.76,2.42666599]
[1763262344522,0.72,140.8,140.75,22.6512]
[1763262344804,0.72,140.8,140.76,2.42666599]
[1763262345183,0.72,140.8,140.75,22.6512]
[1763262345384,2.46666599,140.8,140.76,1.74666599]
[1763262345625,0.72,140.8,140.76,2.42666599]
[1763262345787,0.72,140.79,140.76,1.74666599]
[1763262346098,0.72,140.79,140.76,2.42666599]
[1763262346302,0.72,140.79,140.76,1.74666599]
[1763262347703,0.72,140.79,140.76,2.42666599]
[1763262348793,0.72,140.79,140.77,1.74666599]
[1763262349781,0.72,140.8,140.78,1.74666599]
[1763262351393,0.72,140.8,140.76,0.68]
[1763262351609,0.72,140.8,140.78,1.74666599]
[1763262351805,2.46666599,140.8,140.76,0.68]
[1763262353000,0.72,140.79,140.74,24.39786599]
[1763262353313,0.72,140.79,140.76,0.68]
[1763262353516,2.46666599,140.79,140.72,0.1]
[1763262353717,2.46666599,140.79,140.73,2.42666599]
[1763262353931,1.74666599,140.78,140.73,23.3312]
[1763262354101,2.46666599,140.78,140.74,23.3312]
[1763262354295,0.72,140.78,140.74,23.3312]
[1763262354497,0.72,140.78,140.75,0.68]
[1763262356222,9.78882769,140.83,140.76,1.74666599]
[1763262356433,1.74666599,140.82,140.76,1.74666599]
[1763262356620,2.46666599,140.82,140.77,0.68]
[1763262356826,2.46666599,140.82,140.76,24.39786599]
[1763262356827,2.46666599,140.81,140.76,24.39786599]
[1763262357111,2.46666599,140.81,140.76,25.07786599]
[1763262357325,0.72,140.8,140.76,25.07786599]
[1763262357730,0.72,140.8,140.77,0.68]
[1763262358523,0.72,140.8,140.77,2.42666599]
[1763262359920,0.72,140.8,140.76,1.74666599]
[1763262360313,0.72,140.8,140.76,2.42666599]
[1763262361238,2.46666599,140.8,140.74,0.68]
[1763262361531,1.74666599,140.79,140.74,23.3312]
[1763262361743,2.46666599,140.79,140.74,23.3312]
[1763262361927,2.46666599,140.79,140.75,0.68]
[1763262363423,1.74666599,140.79,140.75,0.68]
[1763262363733,0.72,140.78,140.75,0.68]
[1763262364409,9.78882769,140.83,140.76,1.74666599]
[1763262364608,9.78882769,140.83,140.77,1.74666599]
[1763262364814,2.46666599,140.82,140.77,0.68]
[1763262365032,2.46666599,140.82,140.78,0.68]
[1763262365234,1.74666599,140.81,140.78,0.68]
[1763262366141,0.72,140.8,140.77,0.68]
[1763262366444,2.46666599,140.8,140.77,0.68]
[1763262366607,0.72,140.8,140.77,0.68]
[1763262366933,2.46666599,140.81,140.77,0.68]
[1763262367526,1.74666599,140.79,140.75,29.25597702]
[1763262367843,2.46666599,140.8,140.75,23.3312]
[1763262368042,0.72,140.79,140.75,23.3312]
[1763262369041,2.46666599,140.79,140.75,0.68]
[1763262370016,0.72,140.79,140.75,23.3312]
[1763262370222,2.46666599,140.79,140.75,23.3312]
[1763262372249,2.46666599,140.79,140.75,0.68]
[1763262372618,2.46666599,140.79,140.75,23.3312]
[1763262372818,0.72,140.79,140.75,23.3312]
[1763262373745,2.46666599,140.79,140.75,22.6512]
[1763262374042,2.46666599,140.79,140.76,0.67]
[1763262375450,0.71,140.79,140.76,0.67]
[1763262376339,2.45666599,140.79,140.75,0.67]
[1763262376541,2.45666599,140.79,140.76,0.67]
[1763262376850,0.71,140.79,140.76,0.67]
[1763262377641,0.71,140.79,140.75,23.3212]
[1763262378160,1.74666599,140.76,140.72,0.1]
[1763262378456,2.45666599,140.75,140.72,0.77]
[1763262378620,1.74666599,140.77,140.72,23.4212]
[1763262379014,2.45666599,140.77,140.73,0.67]
[1763262380347,36.73942353,140.82,140.73,0.67]
[1763262380348,1.74666599,140.78,140.73,0.67]
[1763262380545,11.53549368,140.78,140.73,0.67]
[1763262380740,0.71,140.77,140.73,0.67]
[1763262380947,12.24549368,140.78,140.73,0.67]
[1763262381149,0.71,140.77,140.73,0.67]
[1763262385743,9.78882769,140.81,140.75,2.73194342]
[1763262385944,13.23077111,140.81,140.75,2.73194342]
[1763262386270,0.71,140.8,140.76,0.67]
[1763262386487,114.14638413,140.86,140.76,0.67]
[1763262386488,2.73194342,140.82,140.76,3.40194342]
[1763262386848,9.78882769,140.84,140.77,0.67]
[1763262387155,0.71,140.81,140.77,0.67]
[1763262390461,0.71,140.81,140.75,0.67]
[1763262390660,0.71,140.81,140.76,2.73194342]
[1763262391174,3.44194342,140.81,140.77,0.67]
[1763262391383,0.71,140.81,140.77,0.67]
[1763262391582,0.71,140.81,140.77,3.40194342]
[1763262392680,3.44194342,140.81,140.77,0.67]
[1763262392885,0.71,140.81,140.77,3.40194342]
[1763262393179,0.71,140.8,140.77,3.40194342]
[1763262393761,2.73194342,140.82,140.77,3.40194342]
[1763262393964,0.71,140.81,140.77,3.40194342]
[1763262395886,3.44194342,140.81,140.76,2.73194342]
[1763262396062,3.44194342,140.81,140.74,23.3212]
[1763262396063,2.73194342,140.79,140.75,2.73194342]
[1763262396580,2.73194342,140.79,140.75,3.40194342]
[1763262396581,3.44194342,140.79,140.75,3.40194342]
[1763262397087,0.71,140.78,140.74,25.38314342]
[1763262397284,0.71,140.78,140.74,26.05314342]
[1763262397861,0.71,140.78,140.75,0.67]
[1763262398079,0.71,140.78,140.74,25.38314342]
[1763262398381,3.44194342,140.78,140.74,22.6512]
[1763262398888,0.71,140.77,140.74,22.6512]
[1763262399189,0.71,140.77,140.74,23.3212]
[1763262399677,0.71,140.77,140.74,25.38314342]
[1763262400083,0.71,140.77,140.73,3.40194342]
[1763262400255,0.71,140.77,140.73,22.6512]
[1763262400256,2.73194342,140.76,140.73,22.6512]
[1763262400458,2.73194342,140.76,140.72,0.1]
[1763262400657,0.71,140.75,140.72,0.1]
[1763262401364,2.73194342,140.77,140.72,0.1]
[1763262401365,9.78882769,140.77,140.73,3.40194342]
[1763262401567,9.78882769,140.77,140.74,2.73194342]
[1763262401882,0.71,140.78,140.74,3.40194342]
[1763262402269,0.71,140.78,140.72,23.4212]
[1763262402677,0.71,140.78,140.73,2.73194342]
[1763262403289,0.71,140.78,140.73,3.45194342]
[1763262403498,3.53768447,140.79,140.75,2.73194342]
[1763262403660,0.69,140.79,140.76,2.73194342]
[1763262404662,0.69,140.79,140.75,3.45194342]
[1763262405174,0.69,140.81,140.76,3.45194342]
[1763262405483,0.69,140.8,140.76,3.45194342]
[1763262406565,0.69,140.8,140.76,2.73194342]
[1763262406982,0.69,140.8,140.76,3.45194342]
[1763262408682,0.69,140.8,140.76,2.73194342]
[1763262408893,3.42194342,140.8,140.75,25.38314342]
[1763262409296,0.69,140.79,140.76,2.73194342]
[1763262409790,9.78882769,140.78,140.72,0.1]
[1763262409998,2.73194342,140.78,140.73,3.45194342]
[1763262410300,3.42194342,140.77,140.73,26.10314342]
[1763262410707,0.69,140.76,140.73,26.10314342]
[1763262411801,2.73194342,140.8,140.75,2.73194342]
[1763262412009,0.69,140.79,140.75,2.73194342]
[1763262412312,10.47882769,140.79,140.75,2.73194342]
[1763262412685,0.69,140.78,140.74,3.45194342]
[1763262416596,0.69,140.78,140.74,26.10314342]
[1763262418094,3.42194342,140.78,140.74,26.10314342]
[1763262418277,3.42194342,140.78,140.74,23.3712]
[1763262418473,0.69,140.77,140.74,23.3712]
[1763262419302,0.69,140.77,140.74,26.10314342]
[1763262420003,0.69,140.77,140.74,25.38314342]
[1763262420390,3.42194342,140.77,140.72,3.55194342]
[1763262420700,3.42194342,140.77,140.73,3.45194342]
[1763262420701,0.69,140.77,140.73,3.45194342]
[1763262421074,0.69,140.77,140.74,26.10314342]
[1763262421279,0.69,140.78,140.75,2.73194342]
[1763262421494,2.73194342,140.8,140.74,23.3712]
[1763262421495,0.69,140.77,140.74,26.10314342]
[1763262422685,0.69,140.77,140.74,22.6512]
[1763262422899,3.42194342,140.77,140.72,0.1]
[1763262423205,12.52077111,140.76,140.72,0.1]
[1763262423501,0.69,140.76,140.72,0.1]
[1763262423706,0.69,140.76,140.72,3.55194342]
[1763262423904,3.42194342,140.76,140.72,0.82]
[1763262424081,3.42194342,140.76,140.72,0.1]
[1763262424281,0.69,140.75,140.72,0.1]
[1763262424701,10.47882769,140.77,140.73,2.73194342]
[1763262424910,0.69,140.76,140.73,2.73194342]
[1763262426799,0.69,140.76,140.72,3.55194342]
[1763262426992,0.69,140.76,140.73,2.73194342]
[1763262427194,0.69,140.76,140.73,3.45194342]
[1763262429812,0.69,140.76,140.72,22.7512]
[1763262429998,0.69,140.76,140.73,2.73194342]
[1763262430610,0.69,140.76,140.72,25.48314342]
[1763262430611,3.42194342,140.76,140.72,25.48314342]
[1763262430920,0.69,140.76,140.72,26.20314342]
[1763262431209,0.69,140.75,140.72,26.20314342]
[1763262431716,9.78882769,140.78,140.74,2.73194342]
[1763262432012,3.42194342,140.79,140.75,2.73194342]
[1763262432511,0.69,140.78,140.75,2.73194342]
[1763262432900,0.69,140.78,140.74,26.10314342]
[1763262433097,0.69,140.78,140.74,22.6512]
[1763262433306,0.69,140.78,140.74,25.38314342]
[1763262433686,0.69,140.78,140.74,26.05314342]
[1763262433995,3.42194342,140.78,140.74,26.05314342]
[1763262434208,3.42194342,140.78,140.74,25.38314342]
[1763262434408,0.67,140.77,140.74,22.6512]
[1763262434720,0.67,140.77,140.74,23.3212]
[1763262435218,0.67,140.77,140.74,26.05314342]
[1763262436492,0.67,140.77,140.74,25.38314342]
[1763262436803,0.67,140.77,140.74,26.05314342]
[1763262437892,0.67,140.77,140.74,25.38314342]
[1763262438500,0.67,140.77,140.74,22.6512]
[1763262441199,0.67,140.77,140.74,25.38314342]
[1763262442326,0.67,140.77,140.74,22.6512]
[1763262443637,3.40194342,140.77,140.72,0.1]
[1763262443834,2.73194342,140.75,140.72,0.1]
[1763262443998,2.73194342,140.74,140.72,0.1]
[1763262444202,2.73194342,140.73,140.72,0.1]
[1763262444612,6.25084481,140.73,140.72,0.1]
[1763262444931,5.2689421,140.73,140.72,0.1]
[1763262447806,1.75004071,140.74,140.72,0.1]
[1763262448126,5.26873921,140.74,140.72,0.1]
[1763262448427,0.67,140.73,140.72,0.1]
[1763262449726,2.42004071,140.73,140.72,0.1]
[1763262450440,12.2088684,140.73,140.72,0.1]
[1763262450723,10.45882769,140.73,140.72,0.1]
[1763262451037,2.84890139,140.73,140.72,0.1]
[1763262451815,2.42004071,140.76,140.72,2.52004071]
[1763262452023,5.26833351,140.76,140.72,2.52004071]
[1763262452203,0.67,140.75,140.72,2.52004071]
[1763262452400,1.75004071,140.77,140.73,2.42004071]
[1763262452599,12.2088684,140.77,140.72,1.85004071]
[1763262452839,0.67,140.76,140.72,2.52004071]
[1763262453011,0.67,140.76,140.72,0.77]
[1763262453217,2.42004071,140.76,140.72,1.85004071]
[1763262453532,2.42004071,140.76,140.72,0.1]
[1763262453726,0.67,140.75,140.72,0.1]
[1763262453930,2.42004071,140.75,140.72,0.1]
[1763262454228,0.67,140.75,140.72,0.77]
[1763262455015,0.67,140.75,140.72,0.1]
[1763262455313,0.67,140.75,140.72,2.52004071]
[1763262456129,2.42004071,140.75,140.72,0.1]
[1763262456519,0.67,140.74,140.72,0.1]
[1763262458310,2.42004071,140.74,140.72,0.1]
[1763262458534,0.67,140.73,140.72,0.1]
[1763262459235,0.67,140.74,140.72,0.1]
[1763262459409,0.67,140.73,140.72,0.1]
[1763262460636,9.78882769,140.75,140.72,0.1]
[1763262460815,0.67,140.74,140.72,0.1]
[1763262461423,0.67,140.75,140.72,2.52004071]
[1763262461831,9.78882769,140.77,140.73,2.42004071]
[1763262462042,0.67,140.77,140.74,1.75004071]
[1763262462435,0.67,140.77,140.73,0.67]
[1763262462627,0.67,140.77,140.73,2.42004071]